[Event "5th Sharjah Masters 2022"]
[Site "Sharjah"]
[Date "2022.05.25"]
[Round "5.40"]
[White "Saeed, Ishaq"]
[Black "Injac, Teodora"]
[Result "0-1"]
[ECO "D02"]
[WhiteElo "2397"]
[BlackElo "2384"]
[Annotator "TA"]
[PlyCount "108"]
[EventDate "2022.05.21"]
[EventType "swiss"]
[EventCountry "UAE"]
[SourceTitle "playchess.com"]
[Source "ChessBase"]
[SourceQuality "1"]
[TimeControl "5400+30"]

{[%evp 11,108,24,14,13,29,0,13,5,6,5,16,12,4,-15,19,-25,-9,-54,-69,-112,-102,-109,-113,-145,-83,-155,-135,-133,-134,-129,-133,-129,-131,-152,-132,-181,-182,-229,-215,-227,-228,-224,-203,-189,-168,-185,-160,-193,-177,-214,-194,-225,-213,-262,-260,-299,-299,-364,-357,-437,-429,-444,-445,-517,-473,-534,-539,-594,-563,-569,-528,-696,-683,-669,-634,-708,-714,-693,-658,-784,-775,-753,-745,-921,-838,-29975,-29974,-29981,-29982,-29982,-29983,-29982,-29978,-29978,-29981,-29986,-29986,-29986,-29986]} 1. Nf3 {[%emt 0:00:44]} d5 {[%emt 0:00:33]} 2. g3 {[%emt 0:01:11]} g6 {[%emt 0:00:07]} 3. Bg2 {[%emt 0:00:07]} Bg7 {[%emt 0:00:06]} 4. d4 {[%emt 0:03:19]} c6 {[%emt 0:03:30]} 5. O-O {[%emt 0:08:38]} Nf6 {[%emt 0:01:01]} 6. b3 {[%emt 0:02:00]} O-O {[%emt 0:04:10]} 7. Bb2 {[%emt 0:00:15] D02: 1 d4 d5 2 Nf3 sidelines, including 2...Nf6 3 g3 and 2...Nf6 3 Bf4.} a5 {[%emt 0:04:10]} 8. a3 {[%emt 0:04:03]} Bf5 {[%emt 0:04:29]} 9. Nbd2 {[%emt 0:09:00] The position is equal.} Ne4 {[%emt 0:06:44]} 10. Nh4 {[%emt 0:04:00]} Nxd2 {[%emt 0:01:17]} (10... e6 {seems wilder.} 11. f3 Nxd2 12. Qxd2 c5) 11. Qxd2 {[%emt 0:00:09]} Be6 {[%emt 0:01:18]} 12. Nf3 {[%emt 0:14:53] [#]} h6 $146 {[%emt 0:09:19]} ({Predecessor:} 12... Nd7 13. Ng5 Bf5 14. e4 dxe4 15. Nxe4 a4 16. Rfe1 Bxe4 17. Bxe4 axb3 18. cxb3 Nc5 {0-1 (34) Campbell,I (2004)-Norman,K (2185) Guernsey 2013}) 13. Rfe1 {[%emt 0:09:13]} a4 {[%emt 0:09:32]} 14. e4 {[%emt 0:04:03]} axb3 {[%emt 0:05:05]} 15. cxb3 {[%emt 0:00:27] White is on the road to losing.} dxe4 {[%emt 0:00:32]} 16. Rxe4 {[%emt 0:00:07]} Bxb3 {[%emt 0:02:31]} 17. Rh4 {[%emt 0:20:54]} Bd5 {[%emt 0:05:23]} (17... h5 $142 18. Re4 (18. Qb4 $2 Bd5 $17) 18... Bd5) 18. Re1 {[%emt 0:06:22]} ({Better is} 18. Rxh6 Bxh6 19. Qxh6) 18... Nd7 {[%emt 0:01:29]} 19. Rxh6 {[%emt 0:02:47]} Qa5 {[%emt 0:07:12]} 20. Rh4 {[%emt 0:04:40]} Qxd2 {[%emt 0:01:03]} 21. Nxd2 {[%emt 0:00:08]} e6 {[%emt 0:10:05]} 22. Bc1 {[%emt 0:00:34]} Ra4 {[%emt 0:01:46]} 23. Nf3 {[%emt 0:03:46]} (23. Bxd5 $17 cxd5 24. Nf3) 23... Rfa8 $19 {[%emt 0:01:20][%cal Bf8a8,Ba8a4,Ba4e4][%mdl 32]} 24. Ne5 {[%emt 0:00:35]} (24. Bb2 $142) 24... Nxe5 {[%emt 0:04:30]} 25. dxe5 {[%emt 0:00:06]} Rxh4 {[%emt 0:00:35]} 26. gxh4 {[%emt 0:00:01]} Ra4 {[%emt 0:03:21] White must now prevent ...Rg4.} 27. Bxd5 {[%emt 0:00:08]} cxd5 {[%emt 0:00:49][%mdl 4096] Endgame KRB-KRB} 28. Kg2 {[%emt 0:00:04]} Bf8 {[%emt 0:02:23]} ({And not} 28... Rxh4 29. f4 $17) 29. Re3 {[%emt 0:02:10]} Bc5 {[%emt 0:03:15]} ({Weaker is} 29... Rxh4 30. Rb3 $17) 30. Rb3 {[%emt 0:00:30] [#]} b6 $1 {[%emt 0:00:02]} ({Stronger than} 30... Rxh4 31. Rxb7 Rc4 32. Bh6 $17) 31. Kg3 {[%emt 0:00:26]} Re4 {[%emt 0:00:39]} 32. Bb2 {[%emt 0:00:38]} Kf8 {[%emt 0:01:32]} 33. Bc3 {[%emt 0:00:29]} Ke8 {[%emt 0:02:02]} 34. Bb2 {[%emt 0:00:31]} Re2 {[%emt 0:00:17]} 35. f4 {[%emt 0:00:30]} Kd7 {[%emt 0:00:26]} 36. a4 {[%emt 0:00:22]} Kc6 {[%emt 0:00:44]} 37. h3 {[%emt 0:00:36]} Re4 {[%emt 0:00:33]} 38. h5 {[%emt 0:00:32]} gxh5 {[%emt 0:00:11]} 39. Kh4 {[%emt 0:00:08]} Rxf4+ {[%emt 0:01:14]} 40. Kxh5 {[%emt 0:00:06]} d4 {[%emt 0:00:22]} 41. Bc1 {[%emt 0:00:54]} Rf5+ {[%emt 0:00:15]} 42. Kg4 {[%emt 0:00:06]} Rxe5 {[%emt 0:05:38]} 43. h4 {[%emt 0:00:12]} Re4+ {[%emt 0:00:00]} 44. Kh3 {[%emt 0:00:54]} Be7 {[%emt 0:00:00]} 45. h5 {[%emt 0:01:11]} Rh4+ {[%emt 0:00:00]} 46. Kg3 {[%emt 0:00:05]} Rxh5 {[%emt 0:00:00]} 47. Rd3 {[%emt 0:00:55]} Kd5 {[%emt 0:00:00]} 48. Ba3 {[%emt 0:00:30] [#]} Kc4 $1 {[%emt 0:00:00] Black mates.} 49. Rf3 {[%emt 0:00:17]} (49. Rxd4+ Kxd4) 49... Bxa3 {[%emt 0:00:00]} 50. Rxa3 {[%emt 0:00:04]} d3 {[%emt 0:00:00][%cal Bd4d3,Bd3d2][%mdl 32]} 51. Kf3 {[%emt 0:00:04]} Rh3+ {[%emt 0:00:00]} 52. Kf2 {[%emt 0:00:33]} d2 {[%emt 0:00:00]} 53. Ra1 {[%emt 0:00:10]} Rc3 {[%emt 0:00:00]} 54. Rd1 {[%emt 0:00:24]} Kd3 {[%emt 0:00:00] Weighted Error Value: White=0.56/Black=0.07 (flawless)} 0-1

[Event "5th Sharjah Masters 2022"]
[Site "Sharjah"]
[Date "2022.05.26"]
[Round "6.1"]
[White "Gupta, Abhijeet"]
[Black "Deac, Bogdan-Daniel"]
[Result "0-1"]
[ECO "E05"]
[WhiteElo "2606"]
[BlackElo "2671"]
[Annotator "TA"]
[PlyCount "121"]
[EventDate "2022.05.21"]
[EventType "swiss"]
[EventCountry "UAE"]
[SourceTitle "playchess.com"]
[Source "ChessBase"]
[SourceQuality "1"]
[TimeControl "5400+30"]

{[%evp 20,121,0,0,0,0,6,4,7,0,0,0,0,0,8,-45,-43,-93,-104,-135,-139,-194,-179,-190,-196,-187,-214,-211,-202,-206,-201,-204,-211,-164,-119,-138,-129,-137,-129,-191,-183,-260,-204,-213,-189,-307,-303,-333,-315,-426,-282,-346,-287,-355,-347,-345,-340,-391,-384,-576,-531,-516,-519,-463,-504,-481,-429,-502,-477,-702,-664,-791,-530,-485,-563,-537,-573,-651,-553,-568,-570,-547,-472,-430,-376,-368,-372,-368,-355,-557,-542,-546,-541,-537,-508,-747,-562,-664,-655,-626,-623,-822,-797,-1882]} 1. d4 {[%emt 0:00:06]} Nf6 {[%emt 0:00:02]} 2. c4 {[%emt 0:00:08]} e6 {[%emt 0:00:04]} 3. Nf3 {[%emt 0:00:11]} d5 {[%emt 0:00:02]} 4. g3 {[%emt 0:00:14]} Be7 {[%emt 0:00:09]} 5. Bg2 {[%emt 0:00:10]} O-O {[%emt 0:00:04]} 6. O-O {[%emt 0:00:14]} dxc4 {[%emt 0:00:05]} 7. Qc2 {[%emt 0:00:22]} a6 {[%emt 0:00:52]} 8. Qxc4 {[%emt 0:00:55]} b5 {[%emt 0:00:15]} 9. Qc2 {[%emt 0:00:04]} Bb7 {[%emt 0:00:04]} 10. Bd2 {[%emt 0:00:08]} Be4 {[%emt 0:00:19]} 11. Qc1 {[%emt 0:00:09]} c6 {[%emt 0:00:06][%cal Bc7c6,Bc6c5][%mdl 32] E05: Open Catalan: 5 Nf3 Be7.} 12. a4 {[%emt 0:00:19]} Nbd7 {[%emt 0:00:25]} 13. Nc3 {[%emt 0:00:28]} Bg6 {[%emt 0:00:23] The position is equal.} 14. Nh4 {[%emt 0:00:15]} Bh5 {[%emt 0:00:40]} 15. h3 {[%emt 0:00:12]} b4 {[%emt 0:03:58]} 16. Na2 {[%emt 0:01:43] [#]} c5 $146 {[%emt 0:00:59] Strongly threatening ...b3.} (16... Bxe2 17. Re1 Bh5 18. Nxb4 $14) ({Predecessor:} 16... a5 17. g4 Nd5 18. gxh5 Bxh4 19. Qxc6 Rc8 20. Qb5 N7f6 21. Bf3 Qb6 22. Qxb6 Nxb6 {1-0 (39) Donchenko,A (2647)-Gordon,S (2504) Caleta 2020}) 17. Qe1 {[%emt 0:20:23]} ({Better is} 17. Bxa8 $11 Qxa8 18. dxc5) 17... a5 {[%emt 0:32:56]} 18. g4 {[%emt 0:07:48] [#]} (18. Bxa8 $15 Qxa8 19. dxc5) 18... Nd5 $1 $17 {[%emt 0:02:08]} 19. Nf3 {[%emt 0:11:14]} (19. gxh5 Bxh4) 19... Bg6 {[%emt 0:09:50] Black is more active.} 20. Nc1 {[%emt 0:00:54]} (20. e4 $17 N5f6 21. Ne5) 20... Be4 $19 {[%emt 0:00:30]} 21. dxc5 {[%emt 0:00:30]} Nxc5 {[%emt 0:00:30]} 22. Ne5 {[%emt 0:00:30]} Bf6 {[%emt 0:00:30]} 23. Ncd3 {[%emt 0:00:30]} Nxd3 {[%emt 0:00:30]} 24. exd3 {[%emt 0:00:30]} Bxg2 {[%emt 0:00:30]} ({Inferior is} 24... Bxe5 25. dxe4 Nf4 26. Bxf4 Bxf4 27. Rd1 $17) 25. Kxg2 {[%emt 0:00:30]} Nb6 {[%emt 0:00:30] Threatens to win with ...Qd5+.} 26. Bf4 {[%emt 0:00:30]} Bxe5 {[%emt 0:00:30]} 27. Qxe5 {[%emt 0:00:30]} Qxd3 {[%emt 0:00:30] And now ...Nc4 would win.} 28. Rfd1 {[%emt 0:00:30]} Qg6 {[%emt 0:00:30]} 29. b3 {[%emt 0:00:30]} (29. Rac1 $17) 29... Nd5 {[%emt 0:00:30]} 30. Be3 {[%emt 0:00:30]} (30. Rac1 $142) 30... Rfc8 {[%emt 0:00:30]} 31. Bd4 {[%emt 0:00:30]} Rc6 {[%emt 0:00:30][%cal Oh7h5]} 32. Bb2 {[%emt 0:00:30]} (32. Kh2 {was called for.}) 32... f6 {[%emt 0:00:30]} 33. Qd4 {[%emt 0:00:30]} Rd8 {[%emt 0:00:30]} 34. Kh2 {[%emt 0:00:30]} Rdc8 {[%emt 0:00:30]} 35. Rd2 {[%emt 0:00:30]} Rc2 {[%emt 0:00:30]} 36. Rad1 {[%emt 0:00:30]} Rxd2 {[%emt 0:00:30]} 37. Rxd2 {[%emt 0:00:30]} Rc2 {[%emt 0:00:30]} 38. f3 {[%emt 0:00:30]} h5 {[%emt 0:00:30]} 39. gxh5 {[%emt 0:00:30]} (39. Qf2 $142 hxg4 40. fxg4 (40. Rxc2 $2 {is the wrong capture.} g3+ 41. Qxg3 Qxc2+ 42. Qg2 Qxb3 $19) 40... Rxd2 41. Qxd2) 39... Rxd2+ {[%emt 0:00:30]} 40. Qxd2 {[%emt 0:00:30]} Qxh5 {[%emt 0:00:30][%mdl 4096] Endgame KQB-KQN} 41. Kg3 {[%emt 0:00:30]} Qg6+ {[%emt 0:00:30]} 42. Kf2 {[%emt 0:00:30]} Kf7 {[%emt 0:00:30]} 43. h4 {[%emt 0:00:30]} Qb1 {[%emt 0:00:30] Against Qd1} 44. Kg3 {[%emt 0:00:30]} (44. h5 $142) 44... Qg1+ {[%emt 0:00:30]} 45. Kh3 {[%emt 0:00:30]} Qh1+ {[%emt 0:00:30]} 46. Kg3 {[%emt 0:00:30]} Qb1 {[%emt 0:00:30]} 47. Kf2 {[%emt 0:00:30]} Kg6 {[%emt 0:00:30]} 48. Qd4 {[%emt 0:00:30]} Qc2+ {[%emt 0:00:30]} 49. Kg3 {[%emt 0:00:30]} Qxb3 {[%emt 0:00:30] aiming for ...Ne3.} 50. h5+ {[%emt 0:00:30]} Kf7 {[%emt 0:00:30]} 51. Qa7+ {[%emt 0:00:30]} Ne7 {[%emt 0:00:30]} 52. Bd4 {[%emt 0:00:30]} Qxa4 {[%emt 0:00:30]} ({But not} 52... Qd5 $2 53. Bc5 Qd8 54. Kg2 $19) 53. Bc5 {[%emt 0:00:30]} Qe8 {[%emt 0:00:30]} 54. Kg2 {[%emt 0:00:30]} (54. Kf2 {was necessary.}) 54... b3 {[%emt 0:00:30] White must now prevent ...b2. Black is clearly winning.} 55. Ba3 {[%emt 0:00:30]} a4 {[%emt 0:00:30]} 56. Qb7 {[%emt 0:00:30]} Qd8 {[%emt 0:00:30]} 57. Kf2 {[%emt 0:00:30]} Ke8 {[%emt 0:00:30]} 58. Qb5+ {[%emt 0:00:30]} Qd7 {[%emt 0:00:30]} 59. Qb8+ {[%emt 0:00:30]} Kf7 {[%emt 0:00:30]} 60. Qb4 {[%emt 0:00:30] [#]} Kg8 $1 {[%emt 0:00:30]} 61. Qg4 {[%emt 0:00:30] Weighted Error Value: White=0.48/Black=0.22 (precise)} (61. Qe4 Nf5) 0-1

[Event "5th Sharjah Masters 2022"]
[Site "Sharjah"]
[Date "2022.05.26"]
[Round "6.2"]
[White "Tabatabaei, M. Amin"]
[Black "Salem, A.R. Saleh"]
[Result "0-1"]
[ECO "E66"]
[WhiteElo "2650"]
[BlackElo "2690"]
[Annotator "TA"]
[PlyCount "128"]
[EventDate "2022.05.21"]
[EventType "swiss"]
[EventCountry "UAE"]
[SourceTitle "playchess.com"]
[Source "ChessBase"]
[SourceQuality "1"]
[TimeControl "5400+30"]

{[%evp 22,128,19,14,29,18,17,18,24,41,25,12,31,0,0,0,0,-4,0,-15,-17,-20,-20,-12,-18,-18,0,-63,-57,-151,-156,-160,-148,-284,-307,-262,-211,-227,-224,-300,-280,-335,-326,-329,-293,-241,-231,-198,-145,-134,-117,-120,-118,-288,-279,-273,-273,-252,-260,-420,-410,-395,-366,-939,-938,-806,-895,-879,-778,-744,-705,-628,-572,-5716,-29944,-12844,-493,-29950,-29959,-29959,-29961,-29961,-29962,-29962,-29963,-29961,-29963,-29963,-29964,-29964,-29965,-29964,-29960,-1640,0,-29956,-29964,-29952,-29960,-29969,-29970,-29974,-29975,-29978,-29979,-29974,-29975,-29965,-5945]} 1. d4 {[%emt 0:00:32]} Nf6 {[%emt 0:00:06]} 2. c4 {[%emt 0:00:07]} g6 {[%emt 0:00:05]} 3. g3 {[%emt 0:00:14]} Bg7 {[%emt 0:00:54]} 4. Bg2 {[%emt 0:00:06]} O-O {[%emt 0:00:26]} 5. Nc3 {[%emt 0:00:12]} d6 {[%emt 0:00:01]} 6. Nf3 {[%emt 0:00:13]} Nc6 {[%emt 0:00:06]} 7. d5 {[%emt 0:00:18]} Na5 {[%emt 0:02:37]} 8. b3 {[%emt 0:00:19]} c5 {[%emt 0:01:21]} 9. Bb2 {[%emt 0:00:25]} a6 {[%emt 0:00:28]} 10. O-O {[%emt 0:00:51]} Rb8 {[%emt 0:00:12]} 11. Nd2 {[%emt 0:00:24] 11.a4 is the modern continuation.} b5 {[%emt 0:00:14]} 12. Qc2 {[%emt 0:00:16]} Re8 {[%emt 0:07:49] E66: King's Indian: Fianchetto: 6...c5 7 0-0 Nc6 8 d5.} 13. e4 {[%emt 0:10:36]} e6 {[%emt 0:08:41]} 14. Nd1 {[%emt 0:09:07]} bxc4 {[%emt 0:09:41] The position is equal.} 15. bxc4 {[%emt 0:01:02]} exd5 {[%emt 0:00:03]} 16. cxd5 {[%emt 0:00:29]} Bd7 $1 {[%emt 0:00:04]} 17. Nc3 {[%emt 0:14:35]} Ng4 {[%emt 0:02:47]} 18. Rab1 {[%emt 0:01:23]} Ne5 {[%emt 0:04:29][%cal Bg4e5,Be5c4,Bc4a3][%mdl 32]} 19. Ba1 {[%emt 0:01:21] [#]} Rxb1 $146 {[%emt 0:01:18]} ({Predecessor:} 19... Bb5 20. Nxb5 axb5 21. Rfe1 c4 22. Bf1 b4 23. Bxe5 Bxe5 24. Bxc4 Qb6 25. Qd3 Rec8 {1-0 (65) Rapp,U (2097)-Knorpp,R (2130) Wuerttemberg 2000}) 20. Rxb1 {[%emt 0:00:58]} Nac4 {[%emt 0:00:10]} 21. Nxc4 {[%emt 0:13:03]} Nxc4 {[%emt 0:00:21]} 22. Qe2 {[%emt 0:03:55]} Na3 {[%emt 0:00:51]} 23. Rb7 {[%emt 0:00:10]} Bd4 {[%emt 0:13:16]} (23... Bc8 24. Rb3 Nb5 25. Nxb5 Bxa1 26. Na7 $14) 24. Bb2 {[%emt 0:05:18]} (24. Bf1 $11) 24... Nb5 $1 $36 {[%emt 0:05:53][%mdl 2048] Black has some pressure.} 25. Nxb5 {[%emt 0:07:32]} (25. Qd2 $1 $15) 25... Bxb5 $17 {[%emt 0:00:52]} 26. Qf3 {[%emt 0:00:07]} f5 {[%emt 0:05:40] Active counter play!} (26... Re7 27. Rxe7 Qxe7 28. Bxd4 cxd4 29. Bf1 $17) 27. Bxd4 {[%emt 0:00:21]} (27. a4 $17 {was forced.} Qc8 28. Ra7) 27... cxd4 $19 {[%emt 0:00:11]} 28. Bf1 {[%emt 0:07:28]} Qc8 {[%emt 0:02:05]} ({Stronger than} 28... Rxe4 29. Bxb5 axb5 30. Qd3 $11) 29. Bxb5 {[%emt 0:00:09]} axb5 {[%emt 0:00:01][%mdl 4096] Endgame KQR-KQR} 30. Ra7 {[%emt 0:00:53]} Qc3 {[%emt 0:02:55]} ({Worse is} 30... Rxe4 31. Qa3 Qc5 32. Qxc5 dxc5 33. d6 $15) 31. Qf4 {[%emt 0:10:12]} Qe1+ {[%emt 0:00:49]} 32. Kg2 {[%emt 0:00:01]} Qxe4+ {[%emt 0:00:10]} 33. Qxe4 {[%emt 0:00:42]} Rxe4 {[%emt 0:02:20] KR-KR} ({Inferior is} 33... fxe4 34. a4 $17) 34. Ra3 {[%emt 0:00:44]} Re5 {[%emt 0:00:43]} ({Better is} 34... g5 $19 {...Kg7 is the strong threat.} 35. Rb3 Re2 36. Rxb5 Rxa2) 35. Kf1 $17 {[%emt 0:01:13]} g5 {[%emt 0:02:45]} 36. Ra5 {[%emt 0:01:45]} Rxd5 {[%emt 0:05:50]} 37. a4 $2 {[%emt 0:00:10] [#]} (37. Ke2 $17) 37... Kf7 $1 $19 {[%emt 0:00:03]} 38. axb5 {[%emt 0:01:23]} Ke6 {[%emt 0:00:08]} 39. Ke2 {[%emt 0:00:43]} Ke5 {[%emt 0:01:43]} 40. f3 $2 {[%emt 0:08:13]} (40. h3) 40... h5 {[%emt 0:00:53]} 41. Kd3 {[%emt 0:01:20]} Rc5 {[%emt 0:00:10]} 42. f4+ $2 {[%emt 0:01:02]} (42. Kd2) 42... gxf4 {[%emt 0:00:06]} 43. gxf4+ {[%emt 0:00:07]} Kd5 {[%emt 0:00:15]} 44. h4 {[%emt 0:01:04]} Rc3+ {[%emt 0:00:16]} 45. Kd2 {[%emt 0:00:05] [#]} Ke4 $1 {[%emt 0:00:25]} 46. Ra8 {[%emt 0:00:19]} Rb3 {[%emt 0:00:17]} 47. Rb8 {[%emt 0:00:07]} d3 {[%emt 0:02:41]} 48. b6 {[%emt 0:00:35]} Kd4 {[%emt 0:06:28]} (48... Rb1 $142 {White must now prevent ...Rb2+.} 49. b7 Kd4) 49. b7 {[%emt 0:00:31]} (49. Kc1 $19 Ke3 50. Re8+ Kxf4 51. Rb8) 49... Rb1 {[%emt 0:01:56]} 50. Rd8 {[%emt 0:01:43]} Rb2+ {[%emt 0:00:06]} 51. Kd1 {[%emt 0:00:12]} Rxb7 {[%emt 0:00:07]} 52. Rxd6+ {[%emt 0:00:01]} Ke3 {[%emt 0:00:10][%cal Rb7b1]} 53. Re6+ {[%emt 0:00:04]} Kxf4 {[%emt 0:00:04]} 54. Kd2 {[%emt 0:00:05]} Rb3 {[%emt 0:04:36]} 55. Rh6 {[%emt 0:02:17]} Kg4 {[%emt 0:03:43]} 56. Rg6+ {[%emt 0:00:03]} Kf3 {[%emt 0:00:29]} 57. Rh6 {[%emt 0:00:22]} Kg4 {[%emt 0:01:01]} (57... f4 $19 58. Rxh5 Ke4) 58. Rg6+ $1 {[%emt 0:00:06]} Kxh4 {[%emt 0:00:06] Black mates.} 59. Ke3 {[%emt 0:00:04]} Rb1 {[%emt 0:01:08]} 60. Kxd3 {[%emt 0:01:26]} Re1 {[%emt 0:00:03]} 61. Kd2 {[%emt 0:00:28]} Re5 {[%emt 0:00:21]} 62. Rg8 {[%emt 0:00:18]} f4 {[%emt 0:00:15]} 63. Rf8 {[%emt 0:00:11]} Kg3 {[%emt 0:00:06]} 64. Rg8+ {[%emt 0:00:06]} Kf2 {[%emt 0:00:10] Weighted Error Value: White=0.45/Black=0.35} 0-1

[Event "5th Sharjah Masters 2022"]
[Site "Sharjah"]
[Date "2022.05.26"]
[Round "6.3"]
[White "Abdusattorov, Nodirbek"]
[Black "Petrosyan, Manuel"]
[Result "1-0"]
[ECO "C50"]
[WhiteElo "2661"]
[BlackElo "2638"]
[Annotator "TA"]
[PlyCount "93"]
[EventDate "2022.05.21"]
[EventType "swiss"]
[EventCountry "UAE"]
[SourceTitle "playchess.com"]
[Source "ChessBase"]
[SourceQuality "1"]
[TimeControl "5400+30"]

{[%evp 10,93,18,21,22,11,23,23,10,8,13,5,6,-7,0,-8,-17,-9,-12,-60,-33,-48,-43,-52,-53,-58,-61,-63,-59,-63,-57,-50,-61,-60,-67,-60,-46,-44,-40,-38,-43,-58,-8,-23,-7,-18,-10,-20,0,0,0,0,0,0,0,0,0,0,20,17,14,9,10,10,10,15,16,5,5,14,138,150,442,375,591,590,556,377,558,546,485,42,29996,29992,29992,29993]} 1. e4 {[%emt 0:00:11]} e5 {[%emt 0:01:10]} 2. Nf3 {[%emt 0:00:16]} Nc6 {[%emt 0:00:10]} 3. Bc4 {[%emt 0:00:22]} Bc5 {[%emt 0:03:26]} 4. Nc3 {[%emt 0:00:20]} Nf6 {[%emt 0:01:26]} 5. d3 {[%emt 0:00:16]} d6 {[%emt 0:03:16]} 6. Na4 {[%emt 0:00:19]} Bb6 {[%emt 0:03:16] C50: Hungarian Defence and Giuoco Pianissimo.} 7. a3 {[%emt 0:00:25]} Qe7 {[%emt 0:02:06]} 8. O-O {[%emt 0:01:08]} O-O {[%emt 0:01:34] [#] White has an edge.} 9. b4 $146 {[%emt 0:01:23]} ({Predecessor:} 9. c3 Be6 10. Bxe6 Qxe6 11. b4 Ne7 12. Re1 Ng6 13. Bd2 Nd7 14. d4 c6 15. Qc2 {0-1 (47) Popov,I (2600)-Alekseenko,K (2636) Sochi 2019}) 9... a6 {[%emt 0:06:01]} 10. Nxb6 {[%emt 0:01:16]} cxb6 {[%emt 0:00:04]} 11. Bg5 {[%emt 0:03:30]} b5 {[%emt 0:03:13]} 12. Ba2 {[%emt 0:07:31]} h6 {[%emt 0:02:08]} 13. Be3 {[%emt 0:00:36]} Be6 {[%emt 0:00:40]} 14. c3 {[%emt 0:03:40]} (14. Nd2 $11 {should be considered.}) 14... Rfe8 {[%emt 0:07:30]} 15. Qe2 {[%emt 0:04:42]} d5 {[%emt 0:06:04]} 16. exd5 {[%emt 0:14:31]} Nxd5 {[%emt 0:01:19]} 17. Bxd5 {[%emt 0:00:09]} Bxd5 {[%emt 0:00:06]} 18. Nd2 {[%emt 0:01:14]} f5 {[%emt 0:08:24]} 19. Rfe1 {[%emt 0:01:08]} Qf6 {[%emt 0:02:36]} 20. f3 {[%emt 0:02:40]} Bf7 {[%emt 0:03:04]} 21. Bf2 {[%emt 0:05:57]} Rad8 {[%emt 0:01:36]} 22. Rad1 {[%emt 0:04:02]} Rd7 {[%emt 0:03:15]} 23. Nf1 {[%emt 0:02:22]} Red8 {[%emt 0:02:00]} 24. Ng3 {[%emt 0:02:35]} h5 {[%emt 0:03:02]} 25. h3 {[%emt 0:05:24]} h4 {[%emt 0:09:16]} (25... Bb3 $15 26. Rb1 Bf7) 26. Nf1 $11 {[%emt 0:00:06][%cal Bg3f1,Bf1e3,Be3g4][%mdl 32]} g5 {[%emt 0:02:29]} 27. Bc5 {[%emt 0:03:37]} Kh7 {[%emt 0:05:37]} 28. Ne3 {[%emt 0:01:15]} Kg6 {[%emt 0:00:22]} 29. Qc2 {[%emt 0:00:27][%cal Od3d4]} Be6 {[%emt 0:05:29]} 30. Bb6 {[%emt 0:02:36]} Rc8 {[%emt 0:01:01][%cal Oc6d4]} 31. d4 {[%emt 0:01:53]} exd4 {[%emt 0:02:12]} 32. Ng4 {[%emt 0:00:48]} Qf7 {[%emt 0:01:26]} 33. cxd4 {[%emt 0:01:37] aiming for Ne5+.} Rd5 {[%emt 0:03:29]} 34. Qb1 {[%emt 0:02:32]} Re8 {[%emt 0:02:25]} 35. Kh2 {[%emt 0:01:44]} Rd7 {[%emt 0:02:27]} 36. Ne5+ {[%emt 0:05:20]} Nxe5 {[%emt 0:00:05]} 37. dxe5 {[%emt 0:00:05]} Rxd1 {[%emt 0:01:56]} 38. Rxd1 {[%emt 0:00:02]} Bd5 {[%emt 0:01:12]} 39. Qb2 {[%emt 0:04:51]} Bc6 {[%emt 0:00:04] [#]} (39... Qe6 $11) 40. Bd8 $1 $16 {[%emt 0:00:43] Hoping for Bf6.} g4 $2 {[%emt 0:03:02]} (40... Bd5 $16 41. Qd4 Bc6) 41. Bf6 {[%emt 0:00:59]} gxf3 {[%emt 0:00:27]} (41... g3+ $142 42. Kg1 Re6 43. Bxh4 Qg7 44. Bxg3 Kh7) 42. gxf3 $18 {[%emt 0:00:15]} Rg8 {[%emt 0:00:33]} 43. Qf2 {[%emt 0:01:01]} Qc4 {[%emt 0:00:25]} (43... f4 {keeps fighting.} 44. Rg1+ Kf5 45. Qc2+ Ke6) 44. Rd4 {[%emt 0:01:01]} Qb3 {[%emt 0:00:28]} 45. Rd8 $2 {[%emt 0:01:23]} ({Less strong is} 45. Rf4 Bd5 $16) ({Only move:} 45. Qd2 $18 {Qg5+ would kill now.} Kf7 46. Qh6) 45... Bd5 $2 {[%emt 0:00:38][%mdl 8192] [#]} (45... Rxd8 $2 46. Qg2+ (46. Bxd8 f4 $11) 46... Kf7 47. Qg7+ Ke6 48. Qe7+ Kd5 49. Qf7+ Kd4 50. Qxb3 $18) (45... f4 $14) 46. Rxg8+ {[%emt 0:00:15]} Bxg8 {[%emt 0:00:08]} 47. Qg2+ {[%emt 0:00:04] Weighted Error Value: White=0.21 (precise) /Black=0.45} 1-0